[Event "MČR juniorů a juniorek v rapid šachu 2024"]
[Site "Hotel Fit Fun, Harrachov, Czech Republic"]
[Date "2024.09.21"]
[Round "5.10"]
[White "Rybackova Lucie"]
[Black "Jun Robert"]
[Result "1-0"]
[TimeControl "20+5"]
[WhiteFideId "23739207"]
[BlackFideId "23709510"]
[WhiteElo "1933"]
[BlackElo "1681"]

1. d4 {[%clk 00:20:08]} d5 {[%clk 00:20:10]} {[%emt 00:00:01]} 2. Nf3 {[%clk
00:20:10]} {[%emt 00:00:02]} e6 {[%clk 00:20:05]} {[%emt 00:00:09]} 3. g3
{[%clk 00:20:14]} {[%emt 00:00:02]} c5 {[%clk 00:20:08]} {[%emt 00:00:02]} 4.
Bg2 {[%clk 00:20:16]} {[%emt 00:00:02]} Nc6 {[%clk 00:20:12]} {[%emt 00:00:02]}
5. O-O {[%clk 00:20:18]} {[%emt 00:00:03]} Nf6 {[%clk 00:20:12]} {[%emt
00:00:05]} 6. c4 {[%clk 00:20:21]} {[%emt 00:00:01]} cxd4 {[%clk 00:19:34]}
{[%emt 00:00:44]} 7. Nxd4 {[%clk 00:20:20]} {[%emt 00:00:06]} Bc5 {[%clk
00:19:33]} {[%emt 00:00:06]} 8. Nb3 {[%clk 00:20:15]} {[%emt 00:00:10]} Be7
{[%clk 00:18:24]} {[%emt 00:01:13]} 9. cxd5 {[%clk 00:20:16]} {[%emt 00:00:05]}
exd5 {[%clk 00:18:27]} {[%emt 00:00:01]} 10. Nc3 {[%clk 00:18:30]} {[%emt
00:01:52]} Be6 {[%clk 00:18:29]} {[%emt 00:00:03]} 11. Be3 {[%clk 00:17:58]}
{[%emt 00:00:37]} Ne5 {[%clk 00:18:00]} {[%emt 00:00:34]} 12. Nd4 {[%clk
00:16:30]} {[%emt 00:01:33]} Nc4 {[%clk 00:17:55]} {[%emt 00:00:10]} 13. Bc1
{[%clk 00:15:42]} {[%emt 00:00:53]} O-O {[%clk 00:16:35]} {[%emt 00:01:25]} 14.
b3 {[%clk 00:15:38]} {[%emt 00:00:09]} Nd6 {[%clk 00:16:29]} {[%emt 00:00:10]}
15. Bb2 {[%clk 00:15:05]} {[%emt 00:00:39]} Rc8 {[%clk 00:16:18]} {[%emt
00:00:16]} 16. Rc1 {[%clk 00:14:45]} {[%emt 00:00:25]} Nfe4 {[%clk 00:15:17]}
{[%emt 00:01:06]} 17. Nxe4 {[%clk 00:14:44]} {[%emt 00:00:06]} Rxc1 {[%clk
00:15:01]} {[%emt 00:00:21]} 18. Qxc1 {[%clk 00:14:34]} {[%emt 00:00:15]} Nxe4
{[%clk 00:14:55]} {[%emt 00:00:11]} 19. Nxe6 {[%clk 00:14:03]} {[%emt
00:00:36]} fxe6 {[%clk 00:14:58]} {[%emt 00:00:01]} 20. Bxe4 {[%clk 00:13:52]}
{[%emt 00:00:17]} dxe4 {[%clk 00:15:01]} {[%emt 00:00:01]} 21. Rd1 {[%clk
00:11:54]} {[%emt 00:02:03]} Qb6 {[%clk 00:12:38]} {[%emt 00:02:28]} 22. Bd4
{[%clk 00:11:54]} {[%emt 00:00:04]} Qb5 {[%clk 00:12:01]} {[%emt 00:00:43]} 23.
Qc2 {[%clk 00:11:17]} {[%emt 00:00:42]} b6 {[%clk 00:10:40]} {[%emt 00:01:25]}
24. Qxe4 {[%clk 00:11:10]} {[%emt 00:00:12]} Bc5 {[%clk 00:09:33]} {[%emt
00:01:13]} 25. Qxe6+ {[%clk 00:10:34]} {[%emt 00:00:41]} Kh8 {[%clk 00:09:37]}
26. Bxg7+ {[%clk 00:09:57]} {[%emt 00:00:41]} 1-0



[ePGN "0.1;DGT LiveChess/2.2.6"]

[Event "MČR juniorů a juniorek v rapid šachu 2024"]
[Site "Hotel Fit Fun, Harrachov, Czech Republic"]
[Date "2024.09.21"]
[Round "5.11"]
[White "Hosova Sandra"]
[Black "Pressler Tobias"]
[Result "0-1"]
[TimeControl "20+5"]
[WhiteFideId "397717"]
[BlackFideId "23715359"]
[WhiteElo "1847"]
[BlackElo "1992"]

1. d4 {[%clk 00:20:09]} d5 {[%clk 00:20:04]} {[%emt 00:00:07]} 2. Nf3 {[%clk
00:20:12]} {[%emt 00:00:02]} Nf6 {[%clk 00:20:08]} {[%emt 00:00:02]} 3. e3
{[%clk 00:20:15]} {[%emt 00:00:01]} g6 {[%clk 00:20:09]} {[%emt 00:00:05]} 4.
b3 {[%clk 00:20:13]} {[%emt 00:00:06]} Bg7 {[%clk 00:20:10]} {[%emt 00:00:04]}
5. Bb2 {[%clk 00:20:15]} {[%emt 00:00:03]} O-O {[%clk 00:20:11]} {[%emt
00:00:04]} 6. Nbd2 {[%clk 00:20:11]} {[%emt 00:00:09]} Nbd7 {[%clk 00:20:14]}
{[%emt 00:00:02]} 7. Bd3 {[%clk 00:20:06]} {[%emt 00:00:10]} c5 {[%clk
00:20:17]} {[%emt 00:00:03]} 8. O-O {[%clk 00:19:38]} {[%emt 00:00:33]} b6
{[%clk 00:20:20]} {[%emt 00:00:02]} 9. Ne5 {[%clk 00:19:29]} {[%emt 00:00:13]}
Bb7 {[%clk 00:20:23]} {[%emt 00:00:03]} 10. f4 {[%clk 00:17:27]} {[%emt
00:02:06]} Qc8 {[%clk 00:19:19]} {[%emt 00:01:09]} 11. Qe1 {[%clk 00:15:36]}
{[%emt 00:01:57]} Ba6 {[%clk 00:19:16]} {[%emt 00:00:08]} 12. Rc1 {[%clk
00:14:54]} {[%emt 00:00:46]} Bxd3 {[%clk 00:19:16]} {[%emt 00:00:05]} 13. cxd3
{[%clk 00:14:56]} {[%emt 00:00:03]} Qa6 {[%clk 00:18:58]} {[%emt 00:00:23]} 14.
a3 {[%clk 00:13:32]} {[%emt 00:01:30]} Nxe5 {[%clk 00:18:38]} {[%emt 00:00:25]}
15. dxe5 {[%clk 00:13:31]} {[%emt 00:00:05]} Nd7 {[%clk 00:18:38]} {[%emt
00:00:06]} 16. d4 {[%clk 00:12:45]} {[%emt 00:00:50]} Rac8 {[%clk 00:18:20]}
{[%emt 00:00:22]} 17. dxc5 {[%clk 00:12:07]} {[%emt 00:00:43]} bxc5 {[%clk
00:18:23]} {[%emt 00:00:02]} 18. Nf3 {[%clk 00:11:01]} {[%emt 00:01:11]} Nb6
{[%clk 00:18:07]} {[%emt 00:00:21]} 19. Qh4 {[%clk 00:09:29]} {[%emt 00:01:37]}
e6 {[%clk 00:17:03]} {[%emt 00:01:10]} 20. Rf2 {[%clk 00:04:30]} {[%emt
00:05:03]} Qd3 {[%clk 00:16:47]} {[%emt 00:00:22]} 21. Rc3 {[%clk 00:04:15]}
{[%emt 00:00:19]} Qa6 {[%clk 00:15:53]} {[%emt 00:00:59]} 22. Rfc2 {[%clk
00:04:04]} {[%emt 00:00:16]} c4 {[%clk 00:15:45]} {[%emt 00:00:13]} 23. b4
{[%clk 00:03:41]} {[%emt 00:00:29]} Na4 {[%clk 00:15:49]} {[%emt 00:00:01]} 24.
Nd4 {[%clk 00:02:44]} {[%emt 00:01:01]} f6 {[%clk 00:15:30]} {[%emt 00:00:25]}
25. Qh3 {[%clk 00:00:50]} {[%emt 00:01:59]} Rce8 {[%clk 00:14:47]} {[%emt
00:00:48]} 26. b5 {[%clk 00:00:14]} {[%emt 00:00:41]} Qb6 {[%clk 00:14:50]}
{[%emt 00:00:02]} 27. Bc1 {[%clk 00:00:12]} {[%emt 00:00:07]} fxe5 {[%clk
00:14:48]} {[%emt 00:00:07]} 28. fxe5 {[%clk 00:00:07]} {[%emt 00:00:10]} Bxe5
{[%clk 00:14:48]} {[%emt 00:00:04]} 29. Qh4 {[%clk 00:00:07]} {[%emt 00:00:05]}
Nxc3 {[%clk 00:14:16]} {[%emt 00:00:38]} 30. Rxc3 {[%clk 00:00:11]} Bxd4 {[%clk
00:14:15]} {[%emt 00:00:05]} 31. exd4 {[%clk 00:00:15]} e5 {[%clk 00:14:07]}
{[%emt 00:00:14]} 32. Rh3 {[%clk 00:00:16]} {[%emt 00:00:04]} Qxd4+ {[%clk
00:13:58]} {[%emt 00:00:14]} 33. Kh1 {[%clk 00:00:16]} {[%emt 00:00:03]} Rf1#
{[%clk 00:14:01]} {[%emt 00:00:03]} 0-1



[ePGN "0.1;DGT LiveChess/2.2.6"]

[Event "MČR juniorů a juniorek v rapid šachu 2024"]
[Site "Hotel Fit Fun, Harrachov, Czech Republic"]
[Date "2024.09.21"]
[Round "5.12"]
[White "Juhanak Daniel"]
[Black "Garabik Marek"]
[Result "1/2-1/2"]
[TimeControl "20+5"]
[WhiteFideId "23718765"]
[BlackFideId "23717742"]
[WhiteElo "1982"]
[BlackElo "1933"]

1. Nf3 {[%clk 00:20:09]} e6 {[%clk 00:20:09]} {[%emt 00:00:02]} 2. c4 {[%clk
00:20:13]} {[%emt 00:00:01]} d5 {[%clk 00:20:11]} {[%emt 00:00:03]} 3. g3
{[%clk 00:20:16]} {[%emt 00:00:01]} Nf6 {[%clk 00:20:05]} {[%emt 00:00:11]} 4.
Bg2 {[%clk 00:20:20]} Be7 {[%clk 00:20:08]} {[%emt 00:00:02]} 5. O-O {[%clk
00:20:24]} {[%emt 00:00:01]} O-O {[%clk 00:20:06]} {[%emt 00:00:08]} 6. d4
{[%clk 00:20:24]} {[%emt 00:00:05]} Ne4 {[%clk 00:19:47]} {[%emt 00:00:23]} 7.
Nc3 {[%clk 00:20:05]} {[%emt 00:00:24]} f5 {[%clk 00:19:39]} {[%emt 00:00:13]}
8. Qb3 {[%clk 00:18:42]} {[%emt 00:01:28]} c6 {[%clk 00:19:33]} {[%emt
00:00:11]} 9. Ne5 {[%clk 00:18:08]} {[%emt 00:00:39]} Nd7 {[%clk 00:18:28]}
{[%emt 00:01:11]} 10. cxd5 {[%clk 00:15:57]} {[%emt 00:02:16]} Nxe5 {[%clk
00:15:20]} {[%emt 00:03:12]} 11. Nxe4 {[%clk 00:14:15]} {[%emt 00:01:47]} fxe4
{[%clk 00:14:25]} {[%emt 00:01:00]} 12. d6 {[%clk 00:13:54]} {[%emt 00:00:26]}
Qxd6 {[%clk 00:13:17]} {[%emt 00:01:14]} 13. dxe5 {[%clk 00:13:57]} {[%emt
00:00:02]} Qxe5 {[%clk 00:13:17]} {[%emt 00:00:05]} 14. Bf4 {[%clk 00:13:26]}
{[%emt 00:00:37]} Qd5 {[%clk 00:12:59]} {[%emt 00:00:22]} 15. Qc2 {[%clk
00:13:23]} {[%emt 00:00:08]} Qc5 {[%clk 00:10:25]} {[%emt 00:02:40]} 16. Qxe4
{[%clk 00:12:47]} {[%emt 00:00:40]} Bf6 {[%clk 00:08:53]} {[%emt 00:01:37]} 17.
Rad1 {[%clk 00:12:46]} {[%emt 00:00:06]} e5 {[%clk 00:08:43]} {[%emt 00:00:16]}
18. Be3 {[%clk 00:12:30]} {[%emt 00:00:21]} Qb5 {[%clk 00:06:19]} {[%emt
00:02:29]} 19. Qc2 {[%clk 00:11:18]} {[%emt 00:01:17]} Be6 {[%clk 00:05:40]}
{[%emt 00:00:45]} 20. Be4 {[%clk 00:10:57]} {[%emt 00:00:25]} h6 {[%clk
00:05:02]} {[%emt 00:00:43]} 21. b3 {[%clk 00:05:10]} {[%emt 00:05:52]} Rad8
{[%clk 00:04:16]} {[%emt 00:00:51]} 22. Rxd8 {[%clk 00:04:35]} {[%emt
00:00:41]} Rxd8 {[%clk 00:04:19]} {[%emt 00:00:02]} 23. Rd1 {[%clk 00:04:25]}
{[%emt 00:00:15]} Qa5 {[%clk 00:02:42]} {[%emt 00:01:42]} 24. Rxd8+ {[%clk
00:02:48]} {[%emt 00:01:42]} Bxd8 {[%clk 00:02:07]} {[%emt 00:00:39]} 25. Bd2
{[%clk 00:02:06]} {[%emt 00:00:48]} Qc7 {[%clk 00:02:05]} {[%emt 00:00:07]} 26.
Bc3 {[%clk 00:01:42]} {[%emt 00:00:29]} Bf6 {[%clk 00:02:01]} {[%emt 00:00:09]}
27. Qd2 {[%clk 00:01:10]} {[%emt 00:00:37]} Qd7 {[%clk 00:01:41]} {[%emt
00:00:25]} 28. Qxd7 {[%clk 00:00:57]} {[%emt 00:00:17]} Bxd7 {[%clk 00:01:45]}
29. b4 {[%clk 00:01:02]} Be6 {[%clk 00:01:48]} {[%emt 00:00:02]} 30. a4 {[%clk
00:01:01]} {[%emt 00:00:06]} Bd5 {[%clk 00:01:28]} {[%emt 00:00:25]} 31. f3
{[%clk 00:00:43]} {[%emt 00:00:23]} Bxe4 {[%clk 00:01:09]} {[%emt 00:00:25]} 32.
fxe4 {[%clk 00:00:47]} h5 {[%clk 00:01:09]} {[%emt 00:00:04]} 33. Kf2 {[%clk
00:00:43]} {[%emt 00:00:09]} Kf7 {[%clk 00:01:13]} 34. Ke3 {[%clk 00:00:40]}
{[%emt 00:00:08]} Ke6 {[%clk 00:01:13]} {[%emt 00:00:04]} 35. Kd3 {[%clk
00:00:35]} {[%emt 00:00:11]} g5 {[%clk 00:01:01]} {[%emt 00:00:17]} 36. Ke3
{[%clk 00:00:10]} {[%emt 00:00:29]} g4 {[%clk 00:01:04]} {[%emt 00:00:02]} 37.
Kf2 {[%clk 00:00:14]} {[%emt 00:00:01]} Bg5 {[%clk 00:01:07]} {[%emt 00:00:02]}
38. Kg2 {[%clk 00:00:15]} {[%emt 00:00:04]} Be3 {[%clk 00:01:08]} {[%emt
00:00:04]} 39. h3 {[%clk 00:00:17]} {[%emt 00:00:03]} b6 {[%clk 00:01:07]}
{[%emt 00:00:07]} 40. hxg4 {[%clk 00:00:13]} {[%emt 00:00:08]} hxg4 {[%clk
00:01:10]} {[%emt 00:00:02]} 41. Kh2 {[%clk 00:00:12]} {[%emt 00:00:06]} c5
{[%clk 00:01:09]} {[%emt 00:00:06]} 42. bxc5 {[%emt 00:00:06]} bxc5 {[%clk
00:01:13]} 43. Kg2 {[%clk 00:00:13]} {[%emt 00:00:04]} a6 {[%clk 00:01:12]}
{[%emt 00:00:07]} 44. Kf1 {[%clk 00:00:15]} {[%emt 00:00:02]} Bd4 {[%clk
00:00:58]} {[%emt 00:00:19]} 45. Ba5 {[%clk 00:00:09]} {[%emt 00:00:11]} c4
{[%clk 00:00:58]} {[%emt 00:00:05]} 46. Ke1 {[%clk 00:00:13]} {[%emt 00:00:02]}
Kd6 {[%clk 00:01:00]} {[%emt 00:00:03]} 47. Bb4+ {[%clk 00:00:13]} {[%emt
00:00:06]} Kc6 {[%clk 00:01:02]} {[%emt 00:00:03]} 48. Ba5 {[%clk 00:00:10]}
{[%emt 00:00:08]} Kc5 {[%clk 00:01:04]} {[%emt 00:00:02]} 49. Bc7 {[%clk
00:00:08]} {[%emt 00:00:07]} Kb4 {[%clk 00:01:06]} {[%emt 00:00:04]} 50. Kd2
{[%clk 00:00:09]} {[%emt 00:00:04]} Kxa4 {[%emt 00:00:02]} 51. e3 {[%clk
00:00:11]} {[%emt 00:00:03]} Bb2 {[%clk 00:01:09]} {[%emt 00:00:04]} 52. Kc2
{[%clk 00:00:15]} {[%emt 00:00:01]} Ba1 {[%clk 00:00:41]} {[%emt 00:00:33]} 53.
Kb1 {[%clk 00:00:15]} {[%emt 00:00:06]} Bc3 54. Kc2 Ba1 {[%clk 00:00:16]}
{[%emt 00:00:34]} 55. Kb1 {[%clk 00:00:24]} Bc3 56. Kc2 {[%emt 00:00:01]} Ba1
{[%emt 00:00:23]} 1/2-1/2



[ePGN "0.1;DGT LiveChess/2.2.6"]

[Event "MČR juniorů a juniorek v rapid šachu 2024"]
[Site "Hotel Fit Fun, Harrachov, Czech Republic"]
[Date "2024.09.21"]
[Round "5.13"]
[White "Sulcova Tereza Radmila"]
[Black "Koranda Kosma"]
[Result "1-0"]
[TimeControl "20+5"]
[WhiteFideId "395196"]
[BlackFideId "23772948"]
[WhiteElo "1800"]
[BlackElo "1884"]

1. b3 {[%clk 00:20:09]} d5 {[%clk 00:19:47]} {[%emt 00:00:23]} 2. Bb2 {[%clk
00:20:10]} {[%emt 00:00:05]} c5 {[%clk 00:19:45]} {[%emt 00:00:07]} 3. e3
{[%clk 00:20:13]} {[%emt 00:00:02]} Nf6 {[%clk 00:19:40]} {[%emt 00:00:09]} 4.
Nf3 {[%clk 00:20:14]} {[%emt 00:00:04]} g6 {[%clk 00:19:14]} {[%emt 00:00:31]}
5. Bxf6 {[%clk 00:18:54]} {[%emt 00:01:26]} exf6 {[%clk 00:19:14]} {[%emt
00:00:05]} 6. d4 {[%clk 00:18:55]} {[%emt 00:00:05]} cxd4 {[%clk 00:18:50]}
{[%emt 00:00:29]} 7. Nxd4 {[%clk 00:18:58]} {[%emt 00:00:02]} Nc6 {[%clk
00:18:22]} {[%emt 00:00:33]} 8. Bb5 {[%clk 00:17:48]} {[%emt 00:01:14]} Qc7
{[%clk 00:17:42]} {[%emt 00:00:45]} 9. O-O {[%clk 00:16:42]} {[%emt 00:01:11]}
Bg7 {[%clk 00:16:44]} {[%emt 00:01:04]} 10. Nc3 {[%clk 00:16:24]} {[%emt
00:00:23]} Be6 {[%clk 00:15:57]} {[%emt 00:00:51]} 11. Qf3 {[%clk 00:14:26]}
{[%emt 00:02:04]} a6 {[%clk 00:15:20]} {[%emt 00:00:42]} 12. Bxc6+ {[%clk
00:11:27]} {[%emt 00:03:04]} bxc6 {[%clk 00:15:16]} {[%emt 00:00:08]} 13. Rad1
{[%clk 00:11:24]} {[%emt 00:00:08]} O-O {[%clk 00:14:53]} {[%emt 00:00:28]} 14.
e4 {[%clk 00:10:16]} {[%emt 00:01:13]} Qd7 {[%clk 00:12:51]} {[%emt 00:02:06]}
15. h3 {[%clk 00:08:12]} {[%emt 00:02:09]} dxe4 {[%clk 00:11:28]} {[%emt
00:01:29]} 16. Nxe4 {[%clk 00:08:09]} {[%emt 00:00:08]} Bf5 {[%clk 00:05:10]}
{[%emt 00:06:23]} 17. Nc5 {[%clk 00:05:34]} {[%emt 00:02:40]} Qd5 {[%clk
00:04:09]} {[%emt 00:01:06]} 18. Qxd5 {[%clk 00:05:33]} {[%emt 00:00:06]} cxd5
{[%clk 00:04:09]} {[%emt 00:00:05]} 19. Nxf5 {[%clk 00:05:36]} {[%emt
00:00:02]} gxf5 {[%clk 00:04:04]} {[%emt 00:00:09]} 20. Rxd5 {[%clk 00:05:39]}
{[%emt 00:00:03]} f4 {[%clk 00:02:48]} {[%emt 00:01:20]} 21. Rf5 {[%clk
00:05:41]} {[%emt 00:00:03]} Rfc8 {[%clk 00:02:45]} {[%emt 00:00:09]} 22. c4
{[%clk 00:05:37]} {[%emt 00:00:09]} a5 {[%clk 00:02:07]} {[%emt 00:00:43]} 23.
Nd7 {[%clk 00:05:33]} {[%emt 00:00:08]} Ra6 {[%clk 00:01:27]} {[%emt 00:00:46]}
24. Rd1 {[%clk 00:05:00]} {[%emt 00:00:38]} Rd8 {[%clk 00:01:25]} {[%emt
00:00:07]} 25. Rdd5 {[%clk 00:04:35]} {[%emt 00:00:29]} a4 {[%clk 00:00:47]}
{[%emt 00:00:44]} 26. Nc5 {[%clk 00:04:21]} {[%emt 00:00:19]} Rxd5 {[%clk
00:00:22]} {[%emt 00:00:31]} 27. Rxd5 {[%clk 00:04:24]} axb3 {[%clk 00:00:19]}
{[%emt 00:00:08]} 28. axb3 {[%clk 00:03:59]} {[%emt 00:00:30]} Ra1+ {[%clk
00:00:16]} {[%emt 00:00:09]} 29. Kh2 {[%clk 00:04:02]} {[%emt 00:00:01]} Bh6
{[%clk 00:00:18]} {[%emt 00:00:03]} 30. Rf5 {[%clk 00:03:46]} {[%emt 00:00:21]}
Bg5 {[%clk 00:00:18]} {[%emt 00:00:04]} 31. Ne4 {[%clk 00:03:46]} {[%emt
00:00:05]} h6 {[%clk 00:00:13]} {[%emt 00:00:11]} 32. Nxf6+ {[%clk 00:03:47]}
{[%emt 00:00:04]} Kg7 {[%clk 00:00:13]} {[%emt 00:00:04]} 33. Ne4 {[%clk
00:03:37]} {[%emt 00:00:15]} f6 {[%clk 00:00:15]} {[%emt 00:00:04]} 34. Nxg5
{[%clk 00:03:29]} {[%emt 00:00:13]} hxg5 {[%clk 00:00:16]} {[%emt 00:00:04]} 35.
b4 {[%clk 00:03:10]} {[%emt 00:00:24]} Ra2 {[%clk 00:00:10]} {[%emt 00:00:11]}
36. f3 {[%clk 00:03:06]} {[%emt 00:00:09]} Rc2 {[%clk 00:00:14]} {[%emt
00:00:02]} 37. Rc5 {[%clk 00:03:05]} {[%emt 00:00:05]} Kg6 {[%clk 00:00:14]}
{[%emt 00:00:05]} 38. b5 {[%clk 00:03:08]} {[%emt 00:00:01]} f5 {[%clk
00:00:15]} {[%emt 00:00:05]} 39. b6 {[%clk 00:03:07]} {[%emt 00:00:06]} g4
{[%clk 00:00:18]} {[%emt 00:00:02]} 40. hxg4 {[%clk 00:03:08]} {[%emt
00:00:04]} fxg4 {[%clk 00:00:21]} {[%emt 00:00:02]} 41. fxg4 {[%clk 00:02:48]}
{[%emt 00:00:25]} f3 {[%clk 00:00:24]} {[%emt 00:00:02]} 42. Kg1 {[%clk
00:02:51]} {[%emt 00:00:02]} Rxg2+ {[%clk 00:00:09]} {[%emt 00:00:19]} 43. Kf1
{[%clk 00:02:55]} {[%emt 00:00:01]} Re2 {[%clk 00:00:08]} {[%emt 00:00:07]} 44.
b7 {[%clk 00:02:41]} {[%emt 00:00:19]} Re8 {[%clk 00:00:07]} {[%emt 00:00:06]}
45. Rc8 {[%clk 00:02:39]} {[%emt 00:00:07]} Re4 {[%clk 00:00:11]} {[%emt
00:00:01]} 46. b8=Q {[%clk 00:02:35]} {[%emt 00:00:09]} Rxg4 {[%clk 00:00:13]}
{[%emt 00:00:03]} 47. Rg8+ {[%clk 00:02:38]} {[%emt 00:00:02]} Kf5 {[%clk
00:00:17]} {[%emt 00:00:01]} 48. Qc8+ {[%clk 00:02:39]} {[%emt 00:00:04]} 1-0



[ePGN "0.1;DGT LiveChess/2.2.6"]

[Event "MČR juniorů a juniorek v rapid šachu 2024"]
[Site "Hotel Fit Fun, Harrachov, Czech Republic"]
[Date "2024.09.21"]
[Round "5.14"]
[White "Sknouril Jakub"]
[Black "Ret Adam Josef"]
[Result "1-0"]
[TimeControl "20+5"]
[WhiteFideId "23731133"]
[BlackFideId "384240"]
[WhiteElo "1806"]
[BlackElo "2038"]

1. Nf3 {[%clk 00:20:09]} {[%emt 00:00:01]} d5 {[%clk 00:20:06]} {[%emt
00:00:04]} 2. c4 {[%clk 00:20:13]} {[%emt 00:00:01]} e6 {[%clk 00:20:09]}
{[%emt 00:00:02]} 3. Nc3 {[%clk 00:19:49]} {[%emt 00:00:28]} d4 {[%clk
00:17:39]} {[%emt 00:02:35]} 4. Ne4 {[%clk 00:19:35]} {[%emt 00:00:18]} Be7
{[%clk 00:17:19]} {[%emt 00:00:26]} 5. e3 {[%clk 00:19:04]} {[%emt 00:00:36]}
c5 {[%clk 00:16:39]} {[%emt 00:00:45]} 6. d3 {[%clk 00:18:57]} {[%emt
00:00:13]} Nf6 {[%clk 00:16:21]} {[%emt 00:00:22]} 7. Ng3 {[%clk 00:18:30]}
{[%emt 00:00:32]} Nc6 {[%clk 00:16:18]} {[%emt 00:00:07]} 8. Be2 {[%clk
00:18:33]} {[%emt 00:00:02]} O-O {[%clk 00:16:22]} {[%emt 00:00:02]} 9. O-O
{[%clk 00:18:36]} {[%emt 00:00:01]} b6 {[%clk 00:15:54]} {[%emt 00:00:35]} 10.
a3 {[%clk 00:18:37]} {[%emt 00:00:03]} a5 {[%clk 00:15:53]} {[%emt 00:00:06]}
11. exd4 {[%clk 00:18:21]} {[%emt 00:00:21]} Nxd4 {[%clk 00:15:08]} {[%emt
00:00:50]} 12. Be3 {[%clk 00:17:35]} {[%emt 00:00:51]} Bb7 {[%clk 00:14:44]}
{[%emt 00:00:29]} 13. Bxd4 {[%clk 00:16:48]} {[%emt 00:00:52]} cxd4 {[%clk
00:14:46]} {[%emt 00:00:03]} 14. Qd2 {[%clk 00:16:43]} {[%emt 00:00:10]} Qd6
{[%clk 00:14:43]} {[%emt 00:00:08]} 15. b3 {[%clk 00:14:46]} {[%emt 00:02:02]}
g6 {[%clk 00:13:08]} {[%emt 00:01:40]} 16. Ng5 {[%clk 00:12:40]} {[%emt
00:02:10]} Kg7 {[%clk 00:11:20]} {[%emt 00:01:54]} 17. Bf3 {[%clk 00:12:31]}
{[%emt 00:00:14]} Bxf3 {[%clk 00:10:45]} {[%emt 00:00:40]} 18. Nxf3 {[%clk
00:12:35]} {[%emt 00:00:01]} h6 {[%clk 00:10:29]} {[%emt 00:00:21]} 19. Rfe1
{[%clk 00:12:30]} {[%emt 00:00:10]} Nd7 {[%clk 00:10:09]} {[%emt 00:00:25]} 20.
Ne4 {[%clk 00:11:56]} {[%emt 00:00:39]} Qc7 {[%clk 00:09:02]} {[%emt 00:01:13]}
21. Nxd4 {[%clk 00:11:39]} {[%emt 00:00:21]} Rad8 {[%clk 00:08:27]} {[%emt
00:00:39]} 22. Nb5 {[%clk 00:10:45]} {[%emt 00:00:59]} Qc6 {[%clk 00:08:01]}
{[%emt 00:00:31]} 23. Nd4 {[%clk 00:10:18]} {[%emt 00:00:33]} Qc7 {[%clk
00:07:31]} {[%emt 00:00:36]} 24. Qc3 {[%clk 00:10:06]} {[%emt 00:00:15]} Kh7
{[%clk 00:07:14]} {[%emt 00:00:22]} 25. Nb5 {[%clk 00:09:12]} {[%emt 00:01:00]}
Qc6 {[%clk 00:07:07]} {[%emt 00:00:10]} 26. d4 {[%clk 00:08:46]} {[%emt
00:00:30]} Nf6 {[%clk 00:05:49]} {[%emt 00:01:25]} 27. Qf3 {[%clk 00:08:45]}
{[%emt 00:00:06]} Nxe4 {[%clk 00:05:44]} {[%emt 00:00:10]} 28. Qxe4 {[%clk
00:08:45]} {[%emt 00:00:04]} Qxe4 {[%clk 00:05:42]} {[%emt 00:00:08]} 29. Rxe4
{[%clk 00:08:50]} Rd7 {[%clk 00:05:36]} {[%emt 00:00:10]} 30. Rae1 {[%clk
00:08:50]} {[%emt 00:00:05]} Bf6 {[%clk 00:05:28]} {[%emt 00:00:13]} 31. b4
{[%clk 00:08:09]} {[%emt 00:00:46]} axb4 {[%clk 00:05:13]} {[%emt 00:00:19]} 32.
axb4 {[%clk 00:08:12]} {[%emt 00:00:02]} Rfd8 {[%clk 00:05:05]} {[%emt
00:00:13]} 33. c5 {[%clk 00:07:10]} {[%emt 00:01:07]} Rd5 {[%clk 00:04:07]}
{[%emt 00:01:03]} 34. g3 {[%clk 00:05:15]} {[%emt 00:02:00]} Bxd4 {[%clk
00:03:56]} {[%emt 00:00:17]} 35. Nxd4 {[%clk 00:03:51]} {[%emt 00:01:28]} Rxd4
{[%clk 00:03:59]} {[%emt 00:00:02]} 36. c6 {[%clk 00:03:56]} R4d5 {[%clk
00:01:41]} {[%emt 00:02:23]} 37. Rc4 {[%clk 00:03:28]} {[%emt 00:00:33]} Rc8
{[%clk 00:01:31]} {[%emt 00:00:16]} 38. Rec1 {[%clk 00:03:28]} {[%emt
00:00:05]} Kg7 {[%clk 00:01:23]} {[%emt 00:00:13]} 39. Ra1 {[%clk 00:03:16]}
{[%emt 00:00:18]} b5 {[%clk 00:00:46]} {[%emt 00:00:41]} 40. Rc2 {[%clk
00:01:30]} {[%emt 00:01:51]} Rd4 {[%clk 00:00:39]} {[%emt 00:00:12]} 41. Rb1
{[%clk 00:01:33]} {[%emt 00:00:02]} Rd6 {[%clk 00:00:15]} {[%emt 00:00:29]} 42.
c7 {[%clk 00:00:08]} {[%emt 00:01:30]} Rd7 {[%clk 00:00:08]} {[%emt 00:00:12]}
43. Rbc1 {[%clk 00:00:12]} Rd4 {[%emt 00:00:09]} 1-0



[ePGN "0.1;DGT LiveChess/2.2.6"]